[Event "*** Titled Tuesday Blitz"]
[Site "Chess.com"]
[Date "2020.05.12"]
[Round "7"]
[White "SPEEDSKATER"]
[Black "Meri-Arabidze"]
[Result "1-0"]
[WhiteElo "2773"]
[BlackElo "2591"]
[TimeControl "180+1"]
[EndTime "11:18:35 PDT"]
[Termination "SPEEDSKATER won on time"]

1. d4 {[%clk 0:03:00.4]} 1... d5 {[%clk 0:02:59.9]} 2. c4 {[%clk 0:02:58.1]}
2... e6 {[%clk 0:03:00.1]} 3. Nf3 {[%clk 0:02:57.5]} 3... Nf6 {[%clk 0:02:59.9]}
4. Nc3 {[%clk 0:02:56.4]} 4... Nbd7 {[%clk 0:03:00.1]} 5. cxd5 {[%clk
0:02:55.8]} 5... exd5 {[%clk 0:02:59.9]} 6. Bg5 {[%clk 0:02:49.4]} 6... Be7
{[%clk 0:02:59.4]} 7. e3 {[%clk 0:02:48.8]} 7... c6 {[%clk 0:02:59.7]} 8. Qc2
{[%clk 0:02:46.4]} 8... O-O {[%clk 0:02:54.3]} 9. Bd3 {[%clk 0:02:46.1]} 9...
Re8 {[%clk 0:02:54.9]} 10. h3 {[%clk 0:02:42.5]} 10... h6 {[%clk 0:02:47.1]} 11.
Bf4 {[%clk 0:02:40]} 11... Nf8 {[%clk 0:02:34.4]} 12. O-O-O {[%clk 0:02:39.2]}
12... Bd6 {[%clk 0:02:32.1]} 13. Bxd6 {[%clk 0:02:29.7]} 13... Qxd6 {[%clk
0:02:33]} 14. g4 {[%clk 0:02:30.1]} 14... Ne4 {[%clk 0:02:20.5]} 15. Nxe4 {[%clk
0:02:11.3]} 15... dxe4 {[%clk 0:02:21.4]} 16. Bxe4 {[%clk 0:02:12.2]} 16... Qe6
{[%clk 0:02:20.5]} 17. Bd3 {[%clk 0:02:03.2]} 17... Qxa2 {[%clk 0:02:19.6]} 18.
Ne5 {[%clk 0:02:01.5]} 18... Be6 {[%clk 0:02:13.9]} 19. Rdg1 {[%clk 0:01:51.9]}
19... c5 {[%clk 0:02:08.4]} 20. dxc5 {[%clk 0:01:41.4]} 20... Rac8 {[%clk
0:02:01.4]} 21. g5 {[%clk 0:00:43.9]} 21... Qa1+ {[%clk 0:01:49.8]} 22. Kd2
{[%clk 0:00:36.7]} 22... Qa5+ {[%clk 0:01:49.7]} 23. Qc3 {[%clk 0:00:34.6]}
23... Qxc3+ {[%clk 0:01:41.5]} 24. bxc3 {[%clk 0:00:34.6]} 24... Rxc5 {[%clk
0:01:42.1]} 25. f4 {[%clk 0:00:34.7]} 25... hxg5 {[%clk 0:01:40.6]} 26. Rg3
{[%clk 0:00:27.1]} 26... gxf4 {[%clk 0:01:36.6]} 27. exf4 {[%clk 0:00:27.4]}
27... Rd8 {[%clk 0:01:18.6]} 28. Rhg1 {[%clk 0:00:26.9]} 28... g6 {[%clk
0:01:18.9]} 29. Kc2 {[%clk 0:00:23.7]} 29... Rdc8 {[%clk 0:01:10.8]} 30. Be4
{[%clk 0:00:21.8]} 30... b5 {[%clk 0:01:04.9]} 31. Kb2 {[%clk 0:00:21.9]} 31...
a5 {[%clk 0:01:00.2]} 32. h4 {[%clk 0:00:22.1]} 32... b4 {[%clk 0:01:00]} 33.
cxb4 {[%clk 0:00:22.7]} 33... axb4 {[%clk 0:00:57.4]} 34. h5 {[%clk 0:00:22.8]}
34... Rc3 {[%clk 0:00:30.7]} 35. hxg6 {[%clk 0:00:22.5]} 35... fxg6 {[%clk
0:00:30.7]} 36. Bxg6 {[%clk 0:00:22.3]} 36... Rxg3 {[%clk 0:00:24.5]} 37. Rxg3
{[%clk 0:00:21.9]} 37... Kh8 {[%clk 0:00:13.4]} 38. Bc2 {[%clk 0:00:21.6]} 38...
b3 {[%clk 0:00:11.6]} 39. Bd3 {[%clk 0:00:20.3]} 39... Ra8 {[%clk 0:00:11.4]}
40. Kc3 {[%clk 0:00:19.6]} 40... Rb8 {[%clk 0:00:11.1]} 41. f5 {[%clk
0:00:19.4]} 41... Bd5 {[%clk 0:00:10.6]} 42. f6 {[%clk 0:00:17.4]} 42... b2
{[%clk 0:00:10.5]} 43. Bb1 {[%clk 0:00:17.4]} 43... Nh7 {[%clk 0:00:04.8]} 44.
Rh3 {[%clk 0:00:16.3]} 44... Rb7 {[%clk 0:00:03.9]} 45. f7 {[%clk 0:00:15.8]}
45... Bxf7 {[%clk 0:00:03.8]} 46. Rxh7+ {[%clk 0:00:15.5]} 46... Kg8 {[%clk
0:00:04.4]} 47. Rh2 {[%clk 0:00:15.4]} 47... Be6 {[%clk 0:00:02.9]} 48. Rg2+
{[%clk 0:00:14.5]} 48... Kf8 {[%clk 0:00:02.3]} 49. Nd3 {[%clk 0:00:14.9]} 49...
Rb3+ {[%clk 0:00:02.3]} 50. Kd2 {[%clk 0:00:14.6]} 50... Rb7 {[%clk 0:00:02]}
51. Rf2+ {[%clk 0:00:13.8]} 51... Bf7 {[%clk 0:00:02.3]} 52. Rf4 {[%clk
0:00:13.6]} 52... Ke8 {[%clk 0:00:02.6]} 53. Ra4 {[%clk 0:00:13.3]} 53... Rb6
{[%clk 0:00:01.9]} 54. Ra8+ {[%clk 0:00:13]} 54... Ke7 {[%clk 0:00:02.5]} 55.
Ra7+ {[%clk 0:00:13.9]} 55... Ke6 {[%clk 0:00:02.9]} 56. Kc3 {[%clk 0:00:13]}
56... Kd6 {[%clk 0:00:03.2]} 57. Nxb2 {[%clk 0:00:12.3]} 57... Rc6+ {[%clk
0:00:03]} 58. Kd2 {[%clk 0:00:12.2]} 58... Be6 {[%clk 0:00:03.7]} 59. Bd3 {[%clk
0:00:11.9]} 59... Ke5 {[%clk 0:00:03.9]} 60. Nd1 {[%clk 0:00:11.7]} 60... Kf6
{[%clk 0:00:04.2]} 61. Ra5 {[%clk 0:00:11.6]} 61... Rd6 {[%clk 0:00:04.3]} 62.
Ke3 {[%clk 0:00:10.5]} 62... Rd5 {[%clk 0:00:04.3]} 63. Ra6 {[%clk 0:00:10.3]}
63... Re5+ {[%clk 0:00:04.9]} 64. Kd2 {[%clk 0:00:09.7]} 64... Rd5 {[%clk
0:00:05.2]} 65. Ne3 {[%clk 0:00:09.9]} 65... Rd4 {[%clk 0:00:05.5]} 66. Kc3
{[%clk 0:00:10]} 66... Rd8 {[%clk 0:00:02.5]} 67. Bc4 {[%clk 0:00:10.2]} 67...
Re8 {[%clk 0:00:02.8]} 68. Kd4 {[%clk 0:00:10.5]} 68... Kf7 {[%clk 0:00:03.1]}
69. Bd3 {[%clk 0:00:10]} 69... Rd8+ {[%clk 0:00:02.9]} 70. Ke4 {[%clk
0:00:10.6]} 70... Re8 {[%clk 0:00:03.5]} 71. Kf4 {[%clk 0:00:09.5]} 71... Rd8
{[%clk 0:00:04.1]} 72. Ra7+ {[%clk 0:00:09.7]} 72... Rd7 {[%clk 0:00:04.2]} 73.
Ra3 {[%clk 0:00:08.8]} 73... Ke7 {[%clk 0:00:04.6]} 74. Be4 {[%clk 0:00:09]}
74... Rd6 {[%clk 0:00:04.8]} 75. Ke5 {[%clk 0:00:09.3]} 75... Rd7 {[%clk
0:00:05.7]} 76. Ra6 {[%clk 0:00:09.1]} 76... Bf7 {[%clk 0:00:06.1]} 77. Nf5+
{[%clk 0:00:09.1]} 77... Kf8 {[%clk 0:00:04.8]} 78. Ra8+ {[%clk 0:00:08.4]}
78... Be8 {[%clk 0:00:05.1]} 79. Bc6 {[%clk 0:00:07.9]} 1-0

[Event "*** Titled Tuesday Blitz"]
[Site "Chess.com"]
[Date "2020.05.12"]
[Round "7"]
[White "nabukatnezarr"]
[Black "Angel_Hranitel_37"]
[Result "1/2-1/2"]
[WhiteElo "2514"]
[BlackElo "2364"]
[TimeControl "180+1"]
[EndTime "11:18:56 PDT"]
[Termination "Game drawn by repetition"]

1. d4 {[%clk 0:03:00.9]} 1... Nf6 {[%clk 0:02:54.7]} 2. Bg5 {[%clk 0:03:00.6]}
2... Ne4 {[%clk 0:02:52.9]} 3. h4 {[%clk 0:03:00.6]} 3... Nxg5 {[%clk
0:02:51.5]} 4. hxg5 {[%clk 0:03:01.5]} 4... e5 {[%clk 0:02:52]} 5. dxe5 {[%clk
0:02:55.4]} 5... Qxg5 {[%clk 0:02:52.6]} 6. Nf3 {[%clk 0:02:55.5]} 6... Qd8
{[%clk 0:02:52.3]} 7. c4 {[%clk 0:02:43.4]} 7... d6 {[%clk 0:02:52.4]} 8. exd6
{[%clk 0:02:43.1]} 8... Qxd6 {[%clk 0:02:51.2]} 9. Qc1 {[%clk 0:02:36.3]} 9...
Be6 {[%clk 0:02:47.9]} 10. Nbd2 {[%clk 0:02:31.1]} 10... Nc6 {[%clk 0:02:41]}
11. a3 {[%clk 0:02:30.7]} 11... Nd4 {[%clk 0:02:39.5]} 12. Nxd4 {[%clk
0:02:30.5]} 12... Qxd4 {[%clk 0:02:40.4]} 13. g3 {[%clk 0:02:30]} 13... O-O-O
{[%clk 0:02:30.9]} 14. Rh4 {[%clk 0:02:28.2]} 14... Qf6 {[%clk 0:02:26.3]} 15.
Bg2 {[%clk 0:02:25]} 15... Bc5 {[%clk 0:02:24.9]} 16. Ne4 {[%clk 0:02:23]} 16...
Qe7 {[%clk 0:02:25]} 17. Nxc5 {[%clk 0:02:19.9]} 17... Qxc5 {[%clk 0:02:25.9]}
18. Qc3 {[%clk 0:02:14.5]} 18... g5 {[%clk 0:02:25.1]} 19. Re4 {[%clk
0:02:09.2]} 19... h5 {[%clk 0:02:22.1]} 20. Re5 {[%clk 0:02:05.5]} 20... Qxc4
{[%clk 0:02:19.2]} 21. Qxc4 {[%clk 0:02:03.5]} 21... Bxc4 {[%clk 0:02:20.1]} 22.
Rxg5 {[%clk 0:02:03.1]} 22... h4 {[%clk 0:02:20.5]} 23. gxh4 {[%clk 0:01:42.2]}
23... Rxh4 {[%clk 0:02:21.4]} 24. Rd1 {[%clk 0:01:42.8]} 24... Rxd1+ {[%clk
0:01:57.3]} 25. Kxd1 {[%clk 0:01:43.7]} 25... Bb3+ {[%clk 0:01:58]} 26. Kd2
{[%clk 0:01:39.8]} 26... c6 {[%clk 0:01:50.6]} 27. Rg3 {[%clk 0:01:36.5]} 27...
Be6 {[%clk 0:01:42.9]} 28. e4 {[%clk 0:01:31.6]} 28... Rf4 {[%clk 0:01:34.6]}
29. Ke3 {[%clk 0:01:30.1]} 29... Rg4 {[%clk 0:01:24.5]} 30. Rxg4 {[%clk
0:01:27]} 30... Bxg4 {[%clk 0:01:25.4]} 31. f4 {[%clk 0:01:27.5]} 31... c5
{[%clk 0:01:22]} 32. e5 {[%clk 0:01:22.7]} 32... b6 {[%clk 0:01:21]} 33. Bd5
{[%clk 0:01:19]} 33... Bh5 {[%clk 0:01:19.4]} 34. f5 {[%clk 0:01:17.2]} 34...
Kd7 {[%clk 0:01:19.6]} 35. Kf4 {[%clk 0:01:16.6]} 35... Ke7 {[%clk 0:01:18.6]}
36. Kg5 {[%clk 0:01:15]} 36... Be2 {[%clk 0:01:18.5]} 37. f6+ {[%clk 0:01:14.6]}
37... Kf8 {[%clk 0:01:18.5]} 38. Kf4 {[%clk 0:01:12.1]} 38... Bh5 {[%clk
0:01:15.4]} 39. Ke3 {[%clk 0:01:09.4]} 39... Bg4 {[%clk 0:01:14]} 40. Ke4 {[%clk
0:01:08.4]} 40... Bh3 {[%clk 0:01:14]} 41. Kf4 {[%clk 0:01:07.7]} 41... Bf1
{[%clk 0:01:12.5]} 42. Ke3 {[%clk 0:01:07.7]} 42... Bh3 {[%clk 0:01:10.8]} 43.
Kd2 {[%clk 0:01:07.8]} 43... Bf1 {[%clk 0:01:11]} 44. Kc3 {[%clk 0:01:07.6]}
44... a5 {[%clk 0:00:50.4]} 45. Kb3 {[%clk 0:01:06.5]} 45... Bb5 {[%clk
0:00:49.2]} 46. Kc3 {[%clk 0:00:59]} 46... Bf1 {[%clk 0:00:49]} 47. Kd2 {[%clk
0:00:58.8]} 47... b5 {[%clk 0:00:31.6]} 48. Bc6 {[%clk 0:00:57.8]} 48... b4
{[%clk 0:00:31.7]} 49. axb4 {[%clk 0:00:53.3]} 49... axb4 {[%clk 0:00:21.9]} 50.
Bd5 {[%clk 0:00:53.3]} 50... c4 {[%clk 0:00:22.2]} 51. Kc2 {[%clk 0:00:51.4]}
51... Bd3+ {[%clk 0:00:21]} 52. Kc1 {[%clk 0:00:50.4]} 52... c3 {[%clk
0:00:19.2]} 53. Bb3 {[%clk 0:00:48.5]} 53... cxb2+ {[%clk 0:00:19.2]} 54. Kxb2
{[%clk 0:00:49.4]} 54... Bg6 {[%clk 0:00:18.6]} 55. Bd5 {[%clk 0:00:49.4]} 55...
Ke8 {[%clk 0:00:13.3]} 56. Kb3 {[%clk 0:00:49.8]} 56... Kf8 {[%clk 0:00:13.9]}
57. Kxb4 {[%clk 0:00:50.1]} 57... Bh5 {[%clk 0:00:14.6]} 58. Kc5 {[%clk
0:00:50.4]} 58... Bd1 {[%clk 0:00:14.8]} 59. Kd6 {[%clk 0:00:50.7]} 59... Bg4
{[%clk 0:00:15]} 60. Kc7 {[%clk 0:00:49.3]} 60... Bf5 {[%clk 0:00:14.7]} 61. Kd8
{[%clk 0:00:49.1]} 61... Bg4 {[%clk 0:00:15.3]} 62. Bc6 {[%clk 0:00:49.2]} 62...
Bf5 {[%clk 0:00:15.3]} 63. Bd7 {[%clk 0:00:49.2]} 63... Be4 {[%clk 0:00:15.6]}
64. Bg4 {[%clk 0:00:49]} 64... Bd5 {[%clk 0:00:15.8]} 65. Kd7 {[%clk 0:00:47.7]}
65... Bc4 {[%clk 0:00:16.2]} 66. Kd6 {[%clk 0:00:47.1]} 66... Bb3 {[%clk
0:00:16.7]} 67. Bh5 {[%clk 0:00:46.5]} 67... Ba2 {[%clk 0:00:14.6]} 68. Kc5
{[%clk 0:00:46.4]} 68... Bb3 {[%clk 0:00:14.8]} 69. Kd4 {[%clk 0:00:47.3]} 69...
Be6 {[%clk 0:00:15.1]} 70. Ke4 {[%clk 0:00:47.7]} 70... Ba2 {[%clk 0:00:15.7]}
71. Kf4 {[%clk 0:00:48.6]} 71... Be6 {[%clk 0:00:16.3]} 72. Bd1 {[%clk
0:00:48.3]} 72... Bd5 {[%clk 0:00:16.7]} 73. Be2 {[%clk 0:00:48.4]} 73... Bb3
{[%clk 0:00:16.9]} 74. Kg5 {[%clk 0:00:48.9]} 74... Be6 {[%clk 0:00:17.4]} 75.
Bf3 {[%clk 0:00:49]} 75... Bb3 {[%clk 0:00:17.8]} 76. Bg4 {[%clk 0:00:49.4]}
76... Bc4 {[%clk 0:00:18.2]} 77. Kh6 {[%clk 0:00:46.8]} 77... Bb3 {[%clk
0:00:18.4]} 78. Kg5 {[%clk 0:00:34.8]} 78... Bc4 {[%clk 0:00:18.6]} 79. Kf4
{[%clk 0:00:35.1]} 79... Bb3 {[%clk 0:00:19.2]} 80. Ke4 {[%clk 0:00:35.7]} 80...
Bc4 {[%clk 0:00:19.6]} 81. Kd4 {[%clk 0:00:36.6]} 81... Ba2 {[%clk 0:00:20]} 82.
Bf3 {[%clk 0:00:37.5]} 82... Bb3 {[%clk 0:00:20.3]} 83. Bd5 {[%clk 0:00:38.4]}
83... Bd1 {[%clk 0:00:20]} 84. Be4 {[%clk 0:00:39.3]} 84... Bg4 {[%clk
0:00:20.2]} 85. Kd5 {[%clk 0:00:39.4]} 85... Be6+ {[%clk 0:00:20.3]} 86. Kd6
{[%clk 0:00:39.6]} 86... Bb3 {[%clk 0:00:20.7]} 87. Kc5 {[%clk 0:00:35.7]} 87...
Be6 {[%clk 0:00:19.8]} 88. Kd4 {[%clk 0:00:36.1]} 88... Bb3 {[%clk 0:00:19.4]}
89. Bd5 {[%clk 0:00:36.6]} 89... Bd1 {[%clk 0:00:19.1]} 90. Ke3 {[%clk
0:00:37.2]} 90... Bg4 {[%clk 0:00:18.8]} 91. Kf4 {[%clk 0:00:37.4]} 91... Bh3
{[%clk 0:00:19.3]} 92. Kg5 {[%clk 0:00:37.1]} 92... Bd7 {[%clk 0:00:18.9]} 93.
Bc4 {[%clk 0:00:36.2]} 93... Bc8 {[%clk 0:00:19.3]} 94. Bd3 {[%clk 0:00:33]}
94... Bd7 {[%clk 0:00:19.8]} 95. Bf5 {[%clk 0:00:33.2]} 95... Ba4 {[%clk
0:00:20.3]} 96. Bg4 {[%clk 0:00:29.2]} 96... Bb3 {[%clk 0:00:20.5]} 97. Kf5
{[%clk 0:00:26.4]} 97... Bc4 {[%clk 0:00:20.8]} 98. Kf4 {[%clk 0:00:26.2]} 98...
Bb3 {[%clk 0:00:21.2]} 99. Be2 {[%clk 0:00:25.8]} 99... Bd5 {[%clk 0:00:21.3]}
100. Bg4 {[%clk 0:00:22.9]} 100... Bb3 {[%clk 0:00:21.5]} 1/2-1/2

[Event "*** Titled Tuesday Blitz"]
[Site "Chess.com"]
[Date "2020.05.12"]
[Round "7"]
[White "Aygehovit1992"]
[Black "Shukh_Nikolay"]
[Result "1/2-1/2"]
[WhiteElo "2681"]
[BlackElo "2529"]
[TimeControl "180+1"]
[EndTime "11:19:19 PDT"]
[Termination "Game drawn - insufficient material"]

1. e4 {[%clk 0:03:00.9]} 1... e5 {[%clk 0:02:58.5]} 2. Bc4 {[%clk 0:02:59.4]}
2... Nc6 {[%clk 0:02:58.3]} 3. Nc3 {[%clk 0:02:59.1]} 3... Nf6 {[%clk
0:02:58.1]} 4. d3 {[%clk 0:02:59.4]} 4... Bb4 {[%clk 0:02:57.7]} 5. Bd2 {[%clk
0:02:51.5]} 5... Bxc3 {[%clk 0:02:56.7]} 6. bxc3 {[%clk 0:02:37.9]} 6... d5
{[%clk 0:02:53.3]} 7. exd5 {[%clk 0:02:37.5]} 7... Nxd5 {[%clk 0:02:52.7]} 8.
Nf3 {[%clk 0:02:38.2]} 8... O-O {[%clk 0:02:49.8]} 9. O-O {[%clk 0:02:38.4]}
9... Bg4 {[%clk 0:02:46.4]} 10. h3 {[%clk 0:02:38.6]} 10... Bh5 {[%clk
0:02:45.7]} 11. Re1 {[%clk 0:02:38.9]} 11... Re8 {[%clk 0:02:42.2]} 12. g4
{[%clk 0:02:20.7]} 12... Bg6 {[%clk 0:02:41.8]} 13. Qb1 {[%clk 0:02:20.5]} 13...
Nb6 {[%clk 0:02:35.9]} 14. Bb5 {[%clk 0:02:18.2]} 14... e4 {[%clk 0:02:30.2]}
15. Nd4 {[%clk 0:01:41.2]} 15... Nxd4 {[%clk 0:02:27.5]} 16. cxd4 {[%clk
0:01:40.8]} 16... c6 {[%clk 0:02:27.3]} 17. Bc4 {[%clk 0:01:36.1]} 17... exd3
{[%clk 0:02:05.5]} 18. Rxe8+ {[%clk 0:01:35.1]} 18... Qxe8 {[%clk 0:02:05.1]}
19. Bxd3 {[%clk 0:01:35]} 19... Bxd3 {[%clk 0:02:03.2]} 20. cxd3 {[%clk
0:01:35.9]} 20... Qe2 {[%clk 0:01:46.4]} 21. Be3 {[%clk 0:01:24]} 21... Qf3
{[%clk 0:01:45.1]} 22. Qf1 {[%clk 0:01:22.6]} 22... Nd5 {[%clk 0:01:36.7]} 23.
Re1 {[%clk 0:01:22]} 23... Re8 {[%clk 0:01:26.2]} 24. Qg2 {[%clk 0:00:55.1]}
24... Qf6 {[%clk 0:01:19.3]} 25. Qg3 {[%clk 0:00:46.9]} 25... h6 {[%clk
0:01:15.7]} 26. h4 {[%clk 0:00:44.8]} 26... Qg6 {[%clk 0:01:07.7]} 27. Bd2
{[%clk 0:00:35.4]} 27... Rxe1+ {[%clk 0:00:41.9]} 28. Bxe1 {[%clk 0:00:36.3]}
28... Qe6 {[%clk 0:00:30.8]} 29. Kf1 {[%clk 0:00:24.5]} 29... Kh7 {[%clk
0:00:30.3]} 30. h5 {[%clk 0:00:24.1]} 30... a6 {[%clk 0:00:25.2]} 31. Qf3 {[%clk
0:00:23.8]} 31... Kg8 {[%clk 0:00:17.1]} 32. Qe4 {[%clk 0:00:23.4]} 32... Kf8
{[%clk 0:00:16.6]} 33. f3 {[%clk 0:00:22.7]} 33... Ke7 {[%clk 0:00:15]} 34. Bg3
{[%clk 0:00:21.2]} 34... Kd7 {[%clk 0:00:14.8]} 35. Be5 {[%clk 0:00:17.7]} 35...
f6 {[%clk 0:00:13.2]} 36. Bg3 {[%clk 0:00:17.3]} 36... Nb4 {[%clk 0:00:09.1]}
37. Qg6 {[%clk 0:00:14.3]} 37... Qe7 {[%clk 0:00:07.4]} 38. Qf5+ {[%clk
0:00:14.5]} 38... Kd8 {[%clk 0:00:07.4]} 39. Be1 {[%clk 0:00:11.5]} 39... Nd5
{[%clk 0:00:06.4]} 40. Ba5+ {[%clk 0:00:10.4]} 40... Ke8 {[%clk 0:00:06.4]} 41.
Bd2 {[%clk 0:00:09.6]} 41... Kf8 {[%clk 0:00:05.3]} 42. Qe4 {[%clk 0:00:09.4]}
42... Kf7 {[%clk 0:00:04.9]} 43. Ke2 {[%clk 0:00:08.9]} 43... Qe6 {[%clk
0:00:04.6]} 44. Kf2 {[%clk 0:00:06.8]} 44... Ke7 {[%clk 0:00:04.8]} 45. Kg3
{[%clk 0:00:06]} 45... Kd7 {[%clk 0:00:05]} 46. f4 {[%clk 0:00:06.4]} 46... Qe7
{[%clk 0:00:04.7]} 47. Qf5+ {[%clk 0:00:05.9]} 47... Qe6 {[%clk 0:00:04.8]} 48.
Qe4 {[%clk 0:00:06.8]} 48... Qe7 {[%clk 0:00:04.9]} 49. f5 {[%clk 0:00:07.2]}
49... Qd6+ {[%clk 0:00:04.4]} 50. Kg2 {[%clk 0:00:06.8]} 50... Ne7 {[%clk
0:00:04.6]} 51. Bf4 {[%clk 0:00:06.5]} 51... Qd5 {[%clk 0:00:04.9]} 52. Kg3
{[%clk 0:00:06.7]} 52... Nc8 {[%clk 0:00:04.6]} 53. Be3 {[%clk 0:00:05.2]} 53...
Nd6 {[%clk 0:00:04.4]} 54. Qxd5 {[%clk 0:00:04.2]} 54... cxd5 {[%clk 0:00:04.7]}
55. Bd2 {[%clk 0:00:04.8]} 55... Kc6 {[%clk 0:00:04.7]} 56. Kf4 {[%clk
0:00:04.1]} 56... Kb5 {[%clk 0:00:04.5]} 57. Kf3 {[%clk 0:00:04.5]} 57... a5
{[%clk 0:00:04.7]} 58. Bf4 {[%clk 0:00:04.7]} 58... Kc6 {[%clk 0:00:04.3]} 59.
Ke2 {[%clk 0:00:03.6]} 59... Nb5 {[%clk 0:00:04.2]} 60. Ke3 {[%clk 0:00:03.9]}
60... a4 {[%clk 0:00:04.2]} 61. Bg3 {[%clk 0:00:02.6]} 61... Nc3 {[%clk
0:00:03.4]} 62. a3 {[%clk 0:00:02.9]} 62... Nb5 {[%clk 0:00:03]} 63. Bf4 {[%clk
0:00:02.9]} 63... Nxa3 {[%clk 0:00:03]} 64. g5 {[%clk 0:00:03.5]} 64... fxg5
{[%clk 0:00:02.8]} 65. Bxg5 {[%clk 0:00:02.8]} 65... Nb5 {[%clk 0:00:02.8]} 66.
Kd2 {[%clk 0:00:02.6]} 66... Kd7 {[%clk 0:00:02.4]} 67. f6 {[%clk 0:00:01.2]}
67... gxf6 {[%clk 0:00:02.4]} 68. Bxh6 {[%clk 0:00:01.8]} 68... Ke6 {[%clk
0:00:02.8]} 69. Bf4 {[%clk 0:00:01]} 69... Kf7 {[%clk 0:00:03]} 70. h6 {[%clk
0:00:01.9]} 70... Kg6 {[%clk 0:00:02.6]} 71. Kc2 {[%clk 0:00:02.3]} 71... Nxd4+
{[%clk 0:00:02.3]} 72. Kb2 {[%clk 0:00:02.4]} 72... Ne6 {[%clk 0:00:02.5]} 73.
Bd2 {[%clk 0:00:01.7]} 73... f5 {[%clk 0:00:02.6]} 74. Ka3 {[%clk 0:00:01.9]}
74... b5 {[%clk 0:00:01.5]} 75. Kb4 {[%clk 0:00:02.3]} 75... f4 {[%clk
0:00:02.1]} 76. Kxb5 {[%clk 0:00:02.7]} 76... Kxh6 {[%clk 0:00:02.6]} 77. Kxa4
{[%clk 0:00:02.6]} 77... Kg5 {[%clk 0:00:03.5]} 78. Be1 {[%clk 0:00:03.5]} 78...
Kf5 {[%clk 0:00:04.4]} 79. Kb4 {[%clk 0:00:03.8]} 79... f3 {[%clk 0:00:05]} 80.
Kc3 {[%clk 0:00:04.7]} 80... Kf4 {[%clk 0:00:05.2]} 81. Kd2 {[%clk 0:00:05.6]}
81... Ng5 {[%clk 0:00:05.6]} 82. Bh4 {[%clk 0:00:05.3]} 82... Nh3 {[%clk
0:00:05.9]} 83. Ke1 {[%clk 0:00:05.6]} 83... f2+ {[%clk 0:00:06]} 84. Kf1 {[%clk
0:00:05.8]} 84... Kf3 {[%clk 0:00:06.3]} 85. d4 {[%clk 0:00:06.2]} 85... Nf4
{[%clk 0:00:06.4]} 86. Bxf2 {[%clk 0:00:06.2]} 86... Nd3 {[%clk 0:00:06.5]} 87.
Bh4 {[%clk 0:00:06]} 87... Nb4 {[%clk 0:00:06.4]} 88. Bf6 {[%clk 0:00:06.1]}
88... Nc2 {[%clk 0:00:06.4]} 89. Bh8 {[%clk 0:00:06.7]} 89... Ke3 {[%clk
0:00:06.6]} 90. Bg7 {[%clk 0:00:03.6]} 90... Nxd4 {[%clk 0:00:07]} 91. Ke1
{[%clk 0:00:04.3]} 91... Nb3 {[%clk 0:00:05.8]} 92. Kd1 {[%clk 0:00:04.5]} 92...
d4 {[%clk 0:00:05.5]} 93. Bh6+ {[%clk 0:00:05.4]} 93... Kd3 {[%clk 0:00:05.2]}
94. Bg5 {[%clk 0:00:05.8]} 94... Kc3 {[%clk 0:00:05.2]} 95. Bh4 {[%clk 0:00:06]}
95... d3 {[%clk 0:00:05.1]} 96. Bf6+ {[%clk 0:00:06.2]} 96... Kc4 {[%clk
0:00:05.1]} 97. Bg7 {[%clk 0:00:06.6]} 97... d2 {[%clk 0:00:04.8]} 98. Bh6
{[%clk 0:00:06.2]} 98... Kd3 {[%clk 0:00:05.1]} 99. Bxd2 {[%clk 0:00:07.1]}
1/2-1/2

[Event "*** Titled Tuesday Blitz"]
[Site "Chess.com"]
[Date "2020.05.12"]
[Round "8"]
[White "cukus"]
[Black "Ave_Mariia"]
[Result "1-0"]
[WhiteElo "2515"]
[BlackElo "2273"]
[TimeControl "180+1"]
[EndTime "11:28:22 PDT"]
[Termination "cukus won by resignation"]

1. e4 {[%clk 0:03:00.9]} 1... c5 {[%clk 0:03:00]} 2. Nf3 {[%clk 0:03:00.9]} 2...
d6 {[%clk 0:03:00.4]} 3. d4 {[%clk 0:03:01.2]} 3... cxd4 {[%clk 0:03:01]} 4.
Nxd4 {[%clk 0:03:02.1]} 4... Nf6 {[%clk 0:03:01.6]} 5. Nc3 {[%clk 0:03:02.6]}
5... g6 {[%clk 0:03:02.1]} 6. Be3 {[%clk 0:03:02.7]} 6... Bg7 {[%clk 0:03:02.3]}
7. f3 {[%clk 0:03:03.2]} 7... O-O {[%clk 0:03:02.4]} 8. Qd2 {[%clk 0:03:03.8]}
8... Nc6 {[%clk 0:03:02.8]} 9. Bc4 {[%clk 0:03:04.1]} 9... Bd7 {[%clk
0:03:02.3]} 10. O-O-O {[%clk 0:03:04.4]} 10... Rc8 {[%clk 0:03:01.3]} 11. Bb3
{[%clk 0:03:04.7]} 11... Ne5 {[%clk 0:03:01.6]} 12. Kb1 {[%clk 0:03:01.9]} 12...
a6 {[%clk 0:02:52.6]} 13. h4 {[%clk 0:03:00.3]} 13... h5 {[%clk 0:02:51.9]} 14.
g4 {[%clk 0:03:00.6]} 14... hxg4 {[%clk 0:02:52]} 15. h5 {[%clk 0:03:00.6]}
15... Nxh5 {[%clk 0:02:52.3]} 16. Bh6 {[%clk 0:02:53.8]} 16... Rxc3 {[%clk
0:02:32.3]} 17. bxc3 {[%clk 0:02:45.6]} 17... Qc7 {[%clk 0:02:08.6]} 18. Rxh5
{[%clk 0:02:42.1]} 1-0

[Event "*** Titled Tuesday Blitz"]
[Site "Chess.com"]
[Date "2020.05.12"]
[Round "8"]
[White "Piotrek1979"]
[Black "kleinebeer98"]
[Result "0-1"]
[WhiteElo "2371"]
[BlackElo "2668"]
[TimeControl "180+1"]
[EndTime "11:28:23 PDT"]
[Termination "kleinebeer98 won by resignation"]

1. e4 {[%clk 0:03:00.9]} 1... e5 {[%clk 0:02:58.7]} 2. Nf3 {[%clk 0:03:00.7]}
2... Nc6 {[%clk 0:02:59.2]} 3. Bc4 {[%clk 0:03:00.5]} 3... Nf6 {[%clk
0:02:58.9]} 4. d3 {[%clk 0:03:00.7]} 4... h6 {[%clk 0:02:58.7]} 5. c3 {[%clk
0:02:58.3]} 5... d6 {[%clk 0:02:58.8]} 6. Bb3 {[%clk 0:02:58]} 6... g6 {[%clk
0:02:59]} 7. h3 {[%clk 0:02:56.9]} 7... Bg7 {[%clk 0:02:59.4]} 8. Be3 {[%clk
0:02:56]} 8... O-O {[%clk 0:02:59.3]} 9. Nbd2 {[%clk 0:02:55.1]} 9... d5 {[%clk
0:02:57.9]} 10. O-O {[%clk 0:02:43.6]} 10... a5 {[%clk 0:02:55.7]} 11. a4 {[%clk
0:02:42.5]} 11... Be6 {[%clk 0:02:54.8]} 12. Re1 {[%clk 0:02:40.4]} 12... Qd7
{[%clk 0:02:50.8]} 13. Bc5 {[%clk 0:02:38.3]} 13... Rfe8 {[%clk 0:02:49.6]} 14.
exd5 {[%clk 0:02:30.8]} 14... Nxd5 {[%clk 0:02:44.8]} 15. Nc4 {[%clk 0:02:22.3]}
15... Nf4 {[%clk 0:02:44.4]} 16. Ncxe5 {[%clk 0:02:16.1]} 16... Nxe5 {[%clk
0:02:32.3]} 17. Nxe5 {[%clk 0:02:15.6]} 17... Bxe5 {[%clk 0:02:30]} 18. Rxe5
{[%clk 0:02:14.4]} 18... Bxb3 {[%clk 0:02:30.2]} 19. Rxe8+ {[%clk 0:02:13.3]}
19... Rxe8 {[%clk 0:02:31.1]} 20. Qxb3 {[%clk 0:02:12.8]} 20... Qc6 {[%clk
0:02:31.6]} 21. f3 {[%clk 0:01:47.5]} 21... Qxc5+ {[%clk 0:02:31.6]} 22. d4
{[%clk 0:01:47.5]} 22... Qg5 {[%clk 0:02:32.2]} 0-1